bitfinex/quotes_ETHUSD_20250414
["timestamp","ask_amount","ask_price","bid_price","bid_amount"]
[1744648255506,8.8752,1622.4,1621.8,0.06165626]
[1744648255675,8.8752,1622.4,1621.7,2.017356]
[1744648255676,6.1646,1622.2,1621.9,6.16557]
[1744648256307,3.0,1622.3,1621.8,6.16588]
[1744648256524,6.16446,1622.2,1621.7,0.7841]
[1744648256726,6.16576,1621.9,1621.5,6.97666]
[1744648256873,6.16667,1621.7,1621.5,0.8096]
[1744648257075,6.16606,1621.8,1621.5,6.9765]
[1744648257372,6.16606,1621.8,1621.5,13.14349]
[1744648257576,3.0,1622.0,1621.5,13.14349]
[1744648257577,3.0,1622.0,1621.8,6.16567]
[1744648257832,6.16344,1622.5,1622.1,6.16462]
[1744648257996,6.16385,1622.4,1622.1,6.16462]
[1744648258193,9.16336,1622.5,1622.1,12.39095143]
[1744648258424,6.16336,1622.5,1622.0,6.16522]
[1744648258595,6.16336,1622.5,1622.2,6.16435]
[1744648258794,6.16336,1622.5,1622.2,7.397269]
[1744648259006,12.32611,1622.6,1622.2,13.561579]
[1744648259415,6.16302,1622.6,1622.3,6.16401]
[1744648259725,4.21780031,1622.7,1622.2,1.232919]
[1744648259881,6.16373,1622.4,1622.2,1.232919]
[1744648260080,6.16221,1622.8,1622.3,0.89073555]
[1744648260304,6.1632,1622.6,1622.3,0.8291]
[1744648260558,6.16256,1622.8,1622.4,6.16367]
[1744648260760,9.16218,1622.8,1622.3,0.8291]
[1744648261049,6.16393,1622.4,1622.1,6.94291]
[1744648261731,12.32797,1622.4,1622.1,0.7781]
[1744648261939,6.16389,1622.4,1622.1,0.7781]
[1744648262149,0.752,1622.5,1621.9,6.9583]
[1744648262354,12.70211,1622.5,1622.0,0.06164332]
[1744648262506,9.16259,1622.7,1622.1,6.16449]
[1744648262707,6.1633,1622.6,1622.2,6.16441]
[1744648262908,6.1633,1622.6,1622.3,6.95663]
[1744648263114,9.16263,1622.7,1622.4,6.1637]
[1744648263347,9.16263,1622.7,1622.3,0.7927]
[1744648263348,6.16357,1622.5,1622.3,0.7927]
[1744648263852,11.68973043,1622.7,1622.1,0.7927]
[1744648263853,6.1637,1622.4,1622.1,0.7927]
[1744648264060,6.16322,1622.6,1622.1,0.7927]
[1744648264372,6.16234,1622.8,1622.4,12.32702]
[1744648264573,6.16226,1622.8,1622.5,6.9829]
[1744648264866,6.16294,1622.6,1622.3,6.92486]
[1744648265015,6.16265,1622.7,1622.4,0.0616308]
[1744648265220,3.0,1622.8,1622.4,0.0616308]
[1744648265421,6.16315,1622.6,1622.4,0.0616308]
[1744648265618,6.16349,1622.5,1622.3,0.7611]
[1744648265863,6.16315,1622.6,1622.3,0.7611]
[1744648266067,6.16256,1622.7,1622.3,6.92516]
[1744648266372,6.16299,1622.6,1622.3,6.92509]
[1744648266581,6.16266,1622.7,1622.3,8.234005]
[1744648266765,6.16297,1622.6,1622.4,0.06162948]
[1744648266965,0.4648296,1623.0,1622.3,2.070055]
[1744648267163,6.16188,1622.9,1622.5,6.16327]
[1744648267365,12.32392,1622.9,1622.5,6.16316]
[1744648267542,12.32478,1622.8,1622.4,12.32724]
[1744648267737,6.16257,1622.7,1622.4,6.16362]
[1744648267938,6.16257,1622.7,1622.4,12.32724]
[1744648268182,6.16232,1622.8,1622.5,6.1633]
[1744648268681,12.32467,1622.8,1622.5,6.16319]
[1744648268880,12.32389,1622.9,1622.5,12.32638]
[1744648269384,6.161,1623.2,1622.8,6.16218]
[1744648269682,6.161,1623.2,1622.8,6.16205]
[1744648269683,6.16106,1623.1,1622.8,6.16205]
[1744648269848,0.752,1623.4,1622.8,7.394624]
[1744648270194,12.32196,1623.2,1622.9,0.06160772]
[1744648270339,6.16156,1623.0,1622.7,6.16247]
[1744648270542,6.16156,1623.0,1622.7,6.16256]
[1744648270764,6.16156,1623.0,1622.6,15.04699]
[1744648271070,12.32301,1623.0,1622.6,21.20978]
[1744648271379,0.752,1623.4,1622.7,8.34500196]
[1744648271552,12.32271,1623.1,1622.7,14.445838]
[1744648271738,6.16135,1623.1,1622.8,6.16216]
[1744648272072,6.16122,1623.1,1622.8,6.16212]
[1744648272273,6.16083,1623.2,1622.9,6.16171]
[1744648272439,6.16116,1623.1,1622.8,7.6066708]
[1744648272774,6.16067,1623.2,1622.8,1.4445508]
[1744648273072,12.32419,1622.9,1622.6,8.8841]
[1744648273273,6.16148,1623.0,1622.7,0.06161778]
[1744648273574,6.16196,1622.9,1622.7,0.06161778]
[1744648273733,12.32392,1622.9,1622.7,0.06161778]
[1744648274137,6.16111,1623.1,1622.7,0.76207956]
[1744648274386,6.15965,1623.5,1623.1,6.16085]
[1744648274677,6.78461069,1623.8,1623.4,6.15976]
[1744648274678,6.1588,1623.7,1623.4,6.15976]
[1744648274840,6.15839,1623.8,1623.5,6.15936]
[1744648275041,6.15827,1623.9,1623.6,6.15915]
[1744648275238,12.31553,1624.0,1623.6,6.15901]
[1744648275544,6.15864,1623.8,1623.6,1.231847]
[1744648275738,12.31626,1623.9,1623.6,1.231847]
[1744648276450,6.15731,1624.1,1623.7,6.15863]
[1744648276658,6.15731,1624.1,1623.8,0.8109]
[1744648276844,6.15778,1624.0,1623.8,0.8109]
[1744648277044,6.95827,1624.4,1623.9,6.15781]
[1744648277238,12.3624,1624.4,1624.0,0.06157194]
[1744648277576,12.31341,1624.3,1623.9,6.15796]
[1744648277871,6.15689,1624.2,1623.9,6.9245413]
[1744648278036,0.05,1624.4,1624.0,0.06156723]
[1744648278241,0.05,1624.4,1624.1,6.98348]
[1744648278476,0.05,1624.4,1624.1,6.98341]
[1744648278751,0.05,1624.4,1624.2,0.698341]
[1744648279153,6.20634,1624.4,1624.1,0.8263]
[1744648279358,0.05,1624.4,1624.1,0.8263]
[1744648279646,0.05,1624.4,1624.3,6.91239]
[1744648279841,1e-05,1624.4,1624.3,6.91239]
[1744648280043,1e-05,1624.4,1624.3,12.5792]
[1744648280879,1e-05,1624.4,1624.3,9.0292]
[1744648281381,1e-05,1624.4,1624.3,9.09074701]
[1744648281879,1e-05,1624.4,1624.3,9.5792]
[1744648282846,1e-05,1624.4,1624.3,12.5792]
[1744648283788,0.05,1625.4,1624.5,1.3027]
[1744648283941,6.15435,1624.9,1624.5,7.33857]
[1744648284142,6.1548,1624.8,1624.5,0.7527]
[1744648284355,6.15379,1625.1,1624.6,6.15536]
[1744648284570,6.15397,1625.0,1624.7,6.15484]
[1744648284883,9.15321,1625.2,1624.8,6.1544]
[1744648285089,9.15311,1625.2,1624.9,0.06153134]
[1744648285398,9.15311,1625.2,1624.8,6.15454]
[1744648285399,6.15352,1625.1,1624.8,6.15454]
[1744648285759,6.15352,1625.1,1624.7,12.30976]
[1744648286062,6.20259,1625.4,1625.0,6.15372]
[1744648286258,0.05,1625.4,1624.9,6.98448]
[1744648286498,6.15327,1625.2,1624.9,6.98448]
[1744648286650,6.15271,1625.3,1625.0,6.15382]
[1744648286983,12.30659,1625.2,1624.8,13.13934]
[1744648287166,6.1532,1625.2,1624.8,13.13934]
[1744648287483,0.05,1625.4,1624.9,6.15417]
[1744648287651,12.30604,1625.3,1624.9,6.15404]
[1744648287859,6.15327,1625.2,1624.8,6.98491]
[1744648288058,6.15327,1625.2,1624.8,14.4988838]
[1744648288259,0.05,1625.4,1624.8,14.4988838]
[1744648288260,6.20249,1625.4,1624.8,8.3445038]
[1744648288469,0.05,1625.4,1624.8,2.1899138]
[1744648288789,6.20255,1625.4,1625.0,6.15354]
[1744648289101,0.05,1625.4,1625.1,6.21474788]
[1744648289258,0.05,1625.4,1625.2,6.98333]
[1744648289861,6.15285,1625.3,1625.0,0.8113]
[1744648290094,6.15324,1625.2,1625.0,0.8113]
[1744648290705,6.20248,1625.4,1625.0,8.53231049]
[1744648290871,0.05,1625.4,1625.1,6.15328]
[1744648291216,0.05,1625.4,1625.1,12.30659]
[1744648291808,0.05,1625.4,1625.3,6.15271]
[1744648291968,0.05,1625.4,1625.3,6.92421]
[1744648292167,0.05,1625.4,1625.3,8.27902733]
[1744648293824,0.05,1625.4,1625.3,0.7715]
[1744648293973,0.05,1625.4,1625.2,6.15293]
[1744648294179,0.05,1625.4,1625.1,6.92484]
[1744648294491,0.05,1626.4,1625.9,6.15026]
[1744648294689,0.05,1626.4,1625.9,1.380326]
[1744648294889,0.05,1626.4,1625.9,0.7653]
[1744648295117,6.14919,1626.3,1625.9,0.7653]
[1744648295346,6.14949,1626.2,1625.9,0.7653]
[1744648295615,6.1502,1626.0,1625.7,8.073]
[1744648295925,6.15052,1625.9,1625.7,8.073]
[1744648296435,12.30046,1626.0,1625.7,8.073]
[1744648296595,6.15058,1625.9,1625.7,8.073]
[1744648296788,12.30125,1625.9,1625.7,8.073]
[1744648296983,6.15081,1625.8,1625.7,8.073]
[1744648297208,6.15125,1625.7,1625.3,68.35522]
[1744648297596,6.15125,1625.7,1625.4,12.30445]
[1744648297793,6.1504,1626.0,1625.3,56.05]
[1744648298120,6.90173,1626.1,1625.7,6.15098]
[1744648298329,12.29965,1626.1,1625.8,0.06149988]
[1744648298632,6.90107,1626.3,1625.9,6.15016]
[1744648298827,6.19866,1626.4,1626.1,6.14952]
[1744648299011,6.19866,1626.4,1626.0,6.15005]
[1744648299213,0.05,1626.4,1626.2,6.14917]
[1744648299530,0.05,1626.4,1626.2,12.29832]
[1744648299730,0.05,1626.4,1626.3,6.14892]
[1744648299926,0.05,1626.4,1626.3,6.210399]
[1744648300434,0.05,1626.4,1626.3,18.647399]
[1744648300730,0.05,1626.4,1626.3,15.82332065]
[1744648301384,0.05,1626.4,1626.3,16.37332065]
[1744648301594,0.05,1626.4,1626.3,19.37332065]
[1744648302872,0.05,1626.4,1626.3,16.37332065]
[1744648303207,0.05,1626.4,1626.3,19.37332065]
[1744648304741,0.05,1626.4,1626.3,23.37332065]
[1744648304898,0.05,1626.4,1626.3,11.75232065]
[1744648305101,0.05,1626.4,1626.3,19.82032065]
[1744648306342,0.05,1626.4,1626.3,27.62392892]
[1744648307143,0.4010058,1627.1,1627.0,6.14628]
[1744648308029,0.4010058,1627.1,1626.9,6.14637]
[1744648308339,0.4010058,1627.1,1626.8,14.21394]
[1744648308541,6.1464,1627.0,1626.8,8.067]
[1744648309042,6.5470458,1627.1,1626.8,14.21403]
[1744648309340,0.4010058,1627.1,1626.8,20.36094]
[1744648309544,0.4010058,1627.1,1626.9,12.35447541]
[1744648309747,5.8e-06,1627.1,1627.0,6.93358]
[1744648310119,5.8e-06,1627.1,1627.0,6.99502569]
[1744648310449,5.8e-06,1627.1,1627.0,6.93358]
[1744648311056,5.8e-06,1627.1,1626.9,6.14647]
[1744648311225,5.8e-06,1627.1,1626.9,8.7728894]
[1744648311416,6.1459658,1627.1,1626.8,23.264614]
[1744648311623,5.8e-06,1627.1,1626.8,17.117674]
[1744648311846,5.8e-06,1627.1,1626.8,23.264594]
[1744648312047,5.8e-06,1627.1,1626.8,17.117664]
[1744648312324,12.2923158,1627.1,1626.8,8.067]
[1744648312626,6.1460758,1627.1,1626.7,6.14725]
[1744648313051,6.1460758,1627.1,1626.8,6.14702]
[1744648313252,12.2921558,1627.1,1626.8,6.14702]
[1744648313552,6.14637,1627.0,1626.7,6.14725]
[1744648313749,6.14637,1627.0,1626.7,12.29452]
[1744648314125,6.14637,1627.0,1626.7,6.14725]
[1744648314457,6.14682,1626.9,1626.5,14.68201367]
[1744648314755,6.14679,1626.9,1626.5,21.96232137]
[1744648314954,6.14679,1626.9,1626.5,15.81426137]
[1744648315155,12.29362,1626.9,1626.6,6.2090481]
[1744648315361,6.14704,1626.8,1626.6,0.0614681]
[1744648315661,12.29355,1626.9,1626.6,0.06146933]
[1744648315843,6.14719,1626.8,1626.5,7.75027137]
[1744648316043,0.752,1627.0,1626.3,10.93620065]
[1744648316044,6.14765,1626.7,1626.3,10.93620065]
[1744648316234,12.29433,1626.8,1626.5,6.14808]
[1744648316435,6.14713,1626.8,1626.4,7.24201007]
[1744648316663,6.14715,1626.8,1626.5,6.20960304]
[1744648316844,6.14715,1626.8,1626.5,0.06147304]
[1744648316845,12.2945,1626.8,1626.5,0.06147304]
[1744648317046,6.1468,1626.9,1626.5,0.06147304]
[1744648317257,0.752,1627.0,1626.5,0.06147304]
[1744648317462,0.752,1627.0,1626.7,6.14716]
[1744648317621,12.2921058,1627.1,1626.8,6.20849318]
[1744648317822,12.2921058,1627.1,1626.8,0.06146318]
[1744648317823,6.14632,1627.0,1626.8,0.06146318]
[1744648318457,12.2920658,1627.1,1626.8,0.06146318]
[1744648318662,12.2921158,1627.1,1626.7,12.29465]
[1744648318961,5.8e-06,1627.1,1626.8,6.14703]
[1744648319166,5.8e-06,1627.1,1627.0,6.14628]
[1744648319467,5.8e-06,1627.1,1627.0,6.99343]
[1744648319639,5.8e-06,1627.1,1627.0,6.93198]
[1744648320258,5.8e-06,1627.1,1626.8,6.14701]
[1744648320486,6.1459458,1627.1,1626.8,0.8286945]
[1744648320689,6.1459458,1627.1,1626.7,8.287245]
[1744648320690,6.89854,1627.0,1626.6,20.35943]
[1744648320859,6.89854,1627.0,1626.7,6.14738]
[1744648321064,5.8e-06,1627.1,1626.8,6.20816127]
[1744648321264,6.1459258,1627.1,1626.7,6.14717]
[1744648321466,12.2921658,1627.1,1626.7,13.715577]
[1744648321694,5.8e-06,1627.1,1626.7,1.421117]
[1744648322003,5.8e-06,1627.1,1626.6,20.35934]
[1744648322004,12.29316,1627.0,1626.6,20.35934]
[1744648322488,12.2921458,1627.1,1626.8,6.14688]
[1744648322792,6.14637,1627.0,1626.6,14.21163]
[1744648322966,6.14671,1626.9,1626.6,20.3593]
[1744648323347,12.2928,1627.0,1626.6,6.14763]
[1744648323552,6.14758,1626.7,1626.3,6.14863]
[1744648324003,0.752,1626.6,1626.2,55.988]
[1744648324228,6.14868,1626.4,1626.2,8.047]
[1744648324374,6.14892,1626.3,1626.2,8.047]
[1744648324558,6.1496,1626.2,1625.8,15.45660042]
[1744648324751,6.1498,1626.1,1625.9,1.54566004]
[1744648325002,6.14902,1626.3,1625.9,7.69577004]
[1744648325159,6.14902,1626.3,1625.9,7.69601004]
[1744648325362,6.14902,1626.3,1626.0,6.14995]
[1744648326091,12.29811,1626.3,1626.0,6.14995]
[1744648326387,9.89979,1626.6,1626.3,6.14881]
[1744648326561,16.03979,1626.6,1626.2,6.1493]
[1744648326762,6.1485,1626.5,1626.1,6.14957]
[1744648327075,13.03991,1626.6,1626.0,11.64372265]
[1744648327282,13.03989,1626.6,1626.1,6.98092]
[1744648327592,13.03989,1626.6,1626.1,0.8313]
[1744648327593,6.14871,1626.4,1626.1,0.8313]
[1744648327887,6.14924,1626.3,1625.9,7.69594004]
[1744648328089,6.14896,1626.3,1626.0,6.14979]
[1744648328296,13.03986,1626.6,1626.0,4.10912665]
[1744648328491,13.03986,1626.6,1626.3,6.14889]
[1744648328664,13.03986,1626.6,1626.3,6.21036938]
[1744648328996,6.14,1626.6,1626.4,6.14847]
[1744648329367,6.14,1627.0,1626.8,6.14684]
[1744648329565,5.8e-06,1627.1,1626.9,0.06146541]
[1744648329787,6.1462658,1627.1,1626.7,6.91949]
[1744648329984,6.14641,1627.0,1626.7,6.91947]
[1744648330184,6.14641,1627.0,1626.7,14.373448]
[1744648330382,5.8e-06,1627.1,1626.9,6.14651]
[1744648330686,5.8e-06,1627.1,1626.8,12.29387]
[1744648331295,5.8e-06,1627.1,1626.9,6.14658]
[1744648331492,5.8e-06,1627.1,1626.7,2.078918]
[1744648331695,6.14725,1626.8,1626.4,6.94451]
[1744648331868,6.14725,1626.8,1626.5,4.06147034]
[1744648331869,6.14746,1626.7,1626.5,4.06147034]
[1744648332075,6.89892,1626.9,1626.5,0.06147034]
[1744648332276,6.89892,1626.9,1626.6,6.14768]
[1744648332677,6.1400058,1627.1,1626.8,6.14675]
[1744648332870,6.14661,1627.0,1626.6,6.14756]
[1744648333072,6.14628,1627.0,1626.4,8.56726549]
[1744648333267,6.1474,1626.8,1626.4,13.09282]
[1744648333594,6.1474,1626.8,1626.3,14.19681]
[1744648333595,6.1478,1626.6,1626.3,14.19681]
[1744648333765,6.1478,1626.6,1626.3,8.048]
[1744648333966,6.14819,1626.5,1626.3,8.048]
[1744648334167,6.89912,1626.8,1626.4,0.06147883]
[1744648334368,6.14751,1626.7,1626.4,6.20997883]
[1744648334569,6.14751,1626.7,1626.4,8.25065871]
[1744648335313,12.29515,1626.7,1626.4,8.25065871]
[1744648335464,12.29515,1626.7,1626.4,2.10215871]
[1744648335667,6.1478,1626.6,1626.3,8.048]
[1744648335900,6.14827,1626.5,1626.3,8.048]
[1744648336306,6.14951,1626.2,1625.9,16.52786004]
[1744648336509,6.14969,1626.1,1626.0,4.0]
[1744648336803,6.14969,1626.1,1625.8,6.15076]
[1744648337011,6.14969,1626.1,1625.8,12.30145]
[1744648337182,6.15066,1625.9,1625.6,6.15151]
[1744648337381,6.90132,1626.2,1625.5,48.67]
[1744648337571,6.14992,1626.1,1625.7,6.15099]
[1744648337772,6.15048,1625.9,1625.6,4.0]
[1744648338014,3.0,1626.3,1626.0,6.15006]
[1744648338316,6.14948,1626.2,1625.9,6.15032]
[1744648338606,6.14,1626.4,1625.8,0.7664]
[1744648338807,6.14982,1626.1,1625.7,12.30214]
[1744648339107,12.28855,1626.4,1625.9,6.15043]
[1744648339327,6.14895,1626.3,1625.9,6.15043]
[1744648339477,6.14895,1626.3,1625.8,6.91709]
[1744648339478,6.14965,1626.2,1625.8,6.91709]
[1744648339801,6.14,1626.4,1626.1,6.14953]
[1744648340003,6.90021,1626.5,1626.2,6.14917]
[1744648340202,0.752,1626.5,1626.2,6.14917]
[1744648340369,6.14907,1626.3,1626.0,6.14993]
[1744648340581,12.29824,1626.3,1625.9,20.34974]
[1744648340787,12.29824,1626.3,1626.0,2.034974]
[1744648341085,6.1483,1626.5,1626.2,6.14919]
[1744648341284,13.03947,1626.7,1626.3,0.06148234]
[1744648341485,12.28747,1626.7,1626.4,6.1484]
[1744648341687,6.14,1626.7,1626.4,6.1484]
[1744648342022,6.14758,1626.7,1626.5,0.61484]
[1744648342191,6.14779,1626.6,1626.3,9.1489]
[1744648342392,6.14779,1626.6,1626.3,15.2977]
[1744648342593,6.14758,1626.7,1626.3,9.1488]
[1744648342792,6.14758,1626.7,1626.4,0.06147523]
[1744648342992,6.14703,1626.8,1626.4,12.35816523]
[1744648343192,6.14742,1626.7,1626.4,7.38401652]
[1744648343396,6.14779,1626.6,1626.3,6.14887]
[1744648343732,6.14823,1626.5,1626.2,6.91775]
[1744648343953,0.752,1626.9,1626.0,2.864274]
[1744648343954,6.14883,1626.4,1626.0,2.864274]
[1744648344095,6.14835,1626.5,1626.1,12.29934]
[1744648344295,12.2967,1626.5,1626.1,12.29934]
[1744648344521,6.14833,1626.5,1626.2,6.21077361]
[1744648344723,12.29673,1626.5,1626.2,0.06148361]
[1744648344996,12.29576,1626.6,1626.2,6.21055361]
[1744648345212,12.29576,1626.6,1626.2,12.35971361]
[1744648345410,12.29576,1626.6,1626.3,6.14892]
[1744648345411,6.14779,1626.6,1626.3,6.14892]
[1744648345728,6.89868,1626.9,1626.5,6.14792]
[1744648345928,18.43308,1627.0,1626.6,12.35664008]
[1744648346127,18.43308,1627.0,1626.6,12.29517]
[1744648346304,6.14,1627.0,1626.6,0.06146883]
[1744648346495,12.28645,1627.0,1626.6,6.85197088]
[1744648346692,6.14728,1626.8,1626.5,0.833]
[1744648346996,6.14782,1626.6,1626.4,8.049]
[1744648347331,6.14817,1626.5,1626.4,8.049]
[1744648348113,6.89949,1626.7,1626.4,8.049]
[1744648348319,6.14749,1626.7,1626.4,8.049]
[1744648348633,6.14779,1626.6,1626.4,8.049]
[1744648348835,6.14779,1626.6,1626.1,6.97244]
[1744648349000,6.1493,1626.2,1626.0,8.049]
[1744648349201,6.14854,1626.4,1625.8,0.8228]
[1744648349531,6.14978,1626.1,1625.9,4.0]
[1744648349741,6.14978,1626.1,1625.9,4.48228]
[1744648350049,6.14863,1626.4,1626.1,6.14952]
[1744648350372,12.28817,1626.5,1626.1,6.14952]
[1744648350660,12.28817,1626.5,1626.1,6.90512]
[1744648350963,6.14854,1626.4,1626.1,8.210629]
[1744648351125,6.14854,1626.4,1626.1,14.360159]
[1744648351306,12.29732,1626.4,1626.1,2.061109]
[1744648351502,6.14,1626.5,1626.1,2.061109]
[1744648351807,12.2982,1626.3,1625.9,13.6125]
[1744648352543,12.29834,1626.3,1626.0,6.15005]
[1744648352740,12.29896,1626.2,1625.9,1.31188]
[1744648353237,6.14985,1626.1,1625.9,0.8296]
[1744648353429,6.90054,1626.4,1625.7,54.08314]
[1744648353626,6.90054,1626.4,1625.6,8.8611]
[1744648353627,6.90225,1626.0,1625.6,8.8611]
[1744648353934,6.15083,1625.8,1625.6,8.049]
[1744648354140,12.30183,1625.8,1625.6,9.53059647]
[1744648354338,6.15119,1625.7,1625.6,9.469089]
[1744648354559,6.15119,1625.7,1625.6,8.049]
[1744648355867,6.15119,1625.7,1625.4,6.96434]
[1744648356363,0.752,1626.0,1625.4,0.8121]
[1744648356569,12.28894,1626.3,1625.8,12.30162]
[1744648356570,6.14,1626.3,1625.8,12.30162]
[1744648356729,6.14799,1626.6,1626.2,6.14916]
[1744648356931,3.752,1626.7,1626.1,6.94865]
[1744648357227,12.29732,1626.4,1626.1,0.799]
[1744648357727,6.14829,1626.5,1626.2,0.06148337]
[1744648358124,6.14861,1626.4,1626.2,0.06148337]
[1744648358327,6.14861,1626.4,1626.2,1.37745171]
[1744648359323,6.14829,1626.5,1626.2,7.52673171]
[1744648359540,12.29665,1626.5,1626.2,1.37745171]
[1744648359765,6.14869,1626.4,1626.2,1.31596834]
[1744648360468,6.14842,1626.5,1626.2,7.52665245]
[1744648360642,6.14868,1626.4,1626.2,1.31596834]
[1744648360839,6.14949,1626.2,1625.9,16.240402]
[1744648361041,6.14988,1626.1,1625.9,10.090162]
[1744648361241,12.29889,1626.2,1625.9,16.240562]
[1744648361571,6.14934,1626.2,1625.9,16.240562]
[1744648361766,6.14934,1626.2,1626.0,0.06149301]
[1744648361969,6.14968,1626.1,1626.0,0.06149301]
[1744648362170,6.15006,1626.0,1625.9,8.033]
[1744648362380,6.15074,1625.9,1625.6,0.7874]
[1744648362688,6.90122,1626.3,1625.7,0.06150441]
[1744648362689,12.30047,1626.0,1625.7,0.06150441]
[1744648362845,6.15044,1625.9,1625.7,0.06150441]
[1744648363057,6.15081,1625.8,1625.6,2.284623]
[1744648363382,6.15119,1625.7,1625.5,8.033]
[1744648363547,6.15157,1625.6,1625.5,8.033]
[1744648363935,6.15119,1625.7,1625.5,8.033]
[1744648364141,12.3026,1625.7,1625.5,8.033]
[1744648364440,6.15119,1625.7,1625.5,8.09451251]
[1744648364664,6.15119,1625.7,1625.5,9.51918476]
[1744648364859,12.30186,1625.8,1625.5,15.67109476]
[1744648365071,6.15085,1625.8,1625.5,15.60958225]
[1744648365276,12.30183,1625.8,1625.6,0.06150875]
[1744648365768,6.9025,1625.9,1625.5,10.28937225]
[1744648365942,6.1505,1625.9,1625.6,7.15872144]
[1744648366142,12.30111,1625.9,1625.6,7.15872144]
[1744648366341,6.15086,1625.8,1625.6,0.94576723]
[1744648366573,12.3012,1625.9,1625.5,21.16838]
[1744648367377,6.15084,1625.8,1625.5,15.01653]
[1744648367578,6.15084,1625.8,1625.5,21.16836]
[1744648367769,6.15084,1625.8,1625.5,15.01653]
[1744648368080,6.15053,1625.9,1625.6,6.15152]
[1744648368278,13.04183,1626.1,1625.8,6.15077]
[1744648368447,13.04183,1626.1,1625.8,6.77199742]
[1744648368650,12.29904,1626.2,1625.8,12.30145]
[1744648368976,6.14,1626.3,1625.8,12.30145]
[1744648368977,6.1497,1626.1,1625.8,6.15067]
[1744648369145,12.30056,1626.0,1625.7,6.15108]
[1744648369350,6.15027,1626.0,1625.7,6.15108]
[1744648369660,12.30059,1626.0,1625.7,6.15108]
[1744648369852,6.9013,1626.2,1625.5,10.981575]
[1744648370052,6.15134,1625.7,1625.5,8.033]
[1744648370255,6.15063,1625.9,1625.5,14.24616072]
[1744648370575,6.14,1626.1,1625.6,6.15157]
[1744648370755,6.15032,1626.0,1625.7,0.06150288]
[1744648370956,6.14,1626.2,1625.7,0.7754]
[1744648371171,6.15044,1625.9,1625.7,0.7754]
[1744648371348,12.30107,1625.9,1625.7,0.7754]
[1744648371549,6.15083,1625.8,1625.6,1.418457]
[1744648371951,12.30257,1625.7,1625.5,8.8084]
[1744648372151,6.15108,1625.8,1625.5,14.9601]
[1744648372372,6.15108,1625.8,1625.6,0.06150866]
[1744648372593,6.15119,1625.7,1625.6,0.06150866]
[1744648372884,6.90208,1626.0,1625.5,0.83691077]
[1744648373047,6.15119,1625.7,1625.5,0.83691077]
[1744648374851,7.892288,1626.0,1625.5,0.83691077]
[1744648374852,1.742208,1626.0,1625.5,0.83691077]
[1744648375051,6.15114,1625.8,1625.6,0.06150947]
[1744648375252,6.15119,1625.7,1625.6,0.06150947]
[1744648375552,6.15119,1625.7,1625.5,0.83691081]
[1744648376591,6.15044,1625.9,1625.6,6.15146]
[1744648376892,6.15083,1625.8,1625.5,0.7754]
[1744648377111,6.15083,1625.8,1625.5,1.52967525]
[1744648377283,6.15083,1625.8,1625.5,1.468168]
[1744648377483,6.15174,1625.6,1625.3,6.92576]
[1744648377924,12.29053,1625.9,1625.5,6.15195]
[1744648378077,6.14,1625.9,1625.7,6.15109]
[1744648378277,6.14,1625.9,1625.8,0.0615045]
[1744648378493,6.14,1625.9,1625.7,7.59244953]
[1744648379085,12.29062,1625.9,1625.7,1.44135953]
[1744648379280,6.15081,1625.8,1625.5,6.93091]
[1744648379489,6.15168,1625.6,1625.3,0.779]
[1744648379696,12.30274,1625.7,1625.4,10.15231]
[1744648379891,6.903,1625.8,1625.5,6.15186]
[1744648380216,6.15123,1625.7,1625.5,0.06151302]
[1744648380534,6.15157,1625.6,1625.4,4.0]
[1744648380755,6.15157,1625.6,1625.3,6.9316]
[1744648381022,6.15157,1625.6,1625.4,0.06151449]
[1744648381223,13.04246,1625.9,1625.5,6.15195]
[1744648381224,6.15117,1625.8,1625.5,6.15195]
[1744648381430,6.15117,1625.8,1625.4,6.21381449]
[1744648381431,6.151,1625.8,1625.4,6.15222]
[1744648381600,6.15129,1625.7,1625.4,6.15222]
[1744648381804,12.30268,1625.7,1625.4,6.15222]
[1744648382022,12.30268,1625.7,1625.4,7.559917]
[1744648382390,6.15129,1625.7,1625.4,7.559907]
[1744648382691,6.15129,1625.7,1625.3,7.9248]
[1744648382692,6.15195,1625.5,1625.3,1.77216]
[1744648383083,6.15195,1625.5,1625.3,0.779]
[1744648383289,6.15195,1625.5,1624.2,6.15684]
[1744648383290,6.15418,1625.0,1624.8,0.7592]
[1744648383490,6.15422,1624.9,1624.8,4.0]
[1744648383693,6.15402,1625.0,1624.8,4.0]
[1744648383932,12.30804,1625.0,1624.8,4.0]
[1744648384433,6.15422,1624.9,1624.8,4.0]
[1744648384669,6.15498,1624.7,1624.2,0.7563]
[1744648384965,3.752,1624.8,1624.4,6.15608]
[1744648385122,0.752,1624.8,1624.3,10.21788804]
[1744648385310,6.14,1624.9,1624.3,10.21788804]
[1744648385311,6.14,1624.9,1624.5,0.06155566]
[1744648385513,6.14,1624.9,1624.6,6.15536]
[1744648385716,0.752,1625.0,1624.4,7.1776088]
[1744648386014,6.15487,1624.8,1624.4,7.1776088]
[1744648386235,12.31113,1624.6,1624.2,21.08566]
[1744648386563,6.15541,1624.6,1624.3,6.21801319]
[1744648386753,6.15608,1624.5,1624.2,8.7723]
[1744648387056,6.90736,1624.6,1624.1,0.05]
[1744648387239,6.15663,1624.3,1624.1,0.05]
[1744648388157,6.15687,1624.2,1624.1,0.05]
[1744648389756,6.14,1624.4,1624.1,6.20719]
[1744648389957,6.14,1624.7,1624.3,6.15649]
[1744648390161,6.15512,1624.7,1624.4,6.15597]
[1744648390339,6.14,1624.8,1624.4,6.21751354]